bitfinex/quotes_ETHUSD_20240701
["timestamp","ask_amount","ask_price","bid_price","bid_amount"]
[1719874421585,0.50270812,3443.4,3443.0,0.736]
[1719874422074,3.03347,3443.5,3443.0,0.736]
[1719874422275,0.9178123,3443.4,3443.0,0.736]
[1719874422449,0.50270366,3443.3,3443.0,3.64043]
[1719874422655,0.50270366,3443.4,3443.0,3.64043]
[1719874422866,3.03347,3443.5,3443.0,3.64043]
[1719874423043,0.50270798,3443.3,3443.0,3.64043]
[1719874423247,3.03347,3443.5,3443.0,3.64043]
[1719874423477,0.91782484,3443.4,3443.0,3.64043]
[1719874423638,0.5027053,3443.3,3443.0,3.64043]
[1719874423838,0.5027053,3443.4,3443.0,3.64043]
[1719874425173,0.41511945,3443.3,3443.0,3.64043]
[1719874425585,2.7577,3443.5,3443.0,3.64043]
[1719874425788,0.91782366,3443.4,3443.0,3.64043]
[1719874425982,0.41511716,3443.3,3443.0,3.64043]
[1719874426360,2.7577,3443.5,3443.0,3.64043]
[1719874426555,0.91782957,3443.4,3443.0,3.64043]
[1719874426751,0.91782957,3443.3,3443.0,3.64043]
[1719874426953,2.7577,3443.5,3443.0,3.64043]
[1719874427199,0.91783635,3443.4,3443.0,3.64043]
[1719874427487,0.91783635,3443.3,3443.0,3.64043]
[1719874427686,2.7577,3443.5,3443.0,3.64043]
[1719874427980,0.9178331,3443.4,3443.0,3.64043]
[1719874428175,0.9178331,3443.3,3443.0,3.64043]
[1719874428487,2.7577,3443.5,3443.0,3.64043]
[1719874428665,0.91783574,3443.4,3443.0,3.64043]
[1719874428868,0.91783574,3443.3,3443.0,3.64043]
[1719874429090,2.7577,3443.5,3443.0,3.64043]
[1719874429291,0.91783228,3443.4,3443.0,3.64043]
[1719874429588,0.9178323,3443.3,3443.0,3.64043]
[1719874429763,2.7577,3443.5,3443.0,3.64043]
[1719874429966,0.91783236,3443.4,3443.0,3.64043]
[1719874430166,0.91783236,3443.3,3443.0,3.64043]
[1719874430356,2.7577,3443.5,3443.0,3.64043]
[1719874430559,0.91780862,3443.4,3443.0,3.64043]
[1719874430879,0.91780862,3443.3,3443.0,3.64043]
[1719874431075,0.41509703,3443.2,3443.0,3.64043]
[1719874431274,2.2577,3443.5,3443.0,3.64043]
[1719874431594,0.5,3443.3,3443.0,3.64043]
[1719874431777,0.41509915,3443.2,3443.0,3.64043]
[1719874431966,0.5,3443.2,3443.0,3.64043]
[1719874432169,2.773865,3443.5,3443.0,3.64043]
[1719874432507,0.5,3443.2,3443.0,3.64043]
[1719874434093,0.41507718,3443.1,3443.0,3.64043]
[1719874434297,0.41507718,3443.1,3443.0,4.19043]
[1719874435499,0.5,3443.2,3443.0,4.19043]
[1719874435661,2.2577,3443.5,3443.0,4.19043]
[1719874435662,0.41507718,3443.1,3443.0,4.19043]
[1719874435858,0.41507718,3443.4,3443.0,4.19043]
[1719874436057,3.05336791,3443.3,3443.0,4.19043]
[1719874436274,0.41507718,3443.2,3443.0,4.19043]
[1719874436489,0.41507718,3443.1,3443.0,4.19043]
[1719874436686,0.5,3443.3,3443.0,4.19043]
[1719874436687,0.41507718,3443.2,3443.0,4.19043]
[1719874436891,0.41507718,3443.1,3443.0,4.19043]
[1719874438389,0.5,3443.3,3443.0,4.19043]
[1719874438596,0.91779287,3443.2,3443.0,4.19043]
[1719874438764,0.41507718,3443.1,3443.0,4.19043]
[1719874438965,0.41507718,3443.4,3443.0,4.19043]
[1719874439287,3.46819266,3443.3,3443.0,4.19043]
[1719874439484,0.9177937,3443.2,3443.0,4.19043]
[1719874439684,0.41507718,3443.1,3443.0,4.19043]
[1719874439879,0.41507718,3443.4,3443.0,4.19043]
[1719874440193,3.46816781,3443.3,3443.0,4.19043]
[1719874440404,0.91779399,3443.2,3443.0,4.19043]
[1719874440697,0.91779399,3443.1,3443.0,4.19043]
[1719874441001,0.91779399,3443.1,3443.0,3.45443]
[1719874441298,0.91779399,3443.1,3443.0,4.19043]
[1719874441494,2.89667718,3443.1,3442.6,5.90476]
[1719874441695,2.96788834,3443.0,3442.7,3.0]
[1719874441861,2.96776882,3442.9,3442.2,5.90508]
[1719874442063,2.96776882,3442.8,3441.8,5.29753]
[1719874442266,2.90454,3442.9,3441.8,5.29753]
[1719874442267,2.4816,3442.6,3442.1,0.736]
[1719874442463,0.5,3442.4,3442.1,0.736]
[1719874442971,0.5,3442.4,3442.3,0.736]
[1719874443177,0.91497374,3442.4,3442.3,0.736]
[1719874443571,0.5,3442.4,3442.3,0.736]
[1719874445692,0.5,3442.4,3442.3,4.19103]
[1719874445879,2.90436,3443.1,3442.4,2.9049]
[1719874446078,0.5,3442.5,3442.4,2.9049]
[1719874446291,2.4816,3443.2,3442.6,2.90474]
[1719874446508,0.5,3442.7,3442.6,2.90474]
[1719874446715,0.91761409,3442.7,3442.6,2.90474]
[1719874447006,1.41761409,3442.7,3442.6,2.90474]
[1719874447174,1.41761409,3442.7,3442.5,0.736]
[1719874447175,1.41761409,3442.7,3442.5,2.90486]
[1719874447375,0.41476761,3442.6,3442.5,2.90486]
[1719874449021,0.5,3442.7,3442.5,2.90486]
[1719874456307,0.41487669,3442.6,3442.5,2.90486]
[1719874460308,0.41487669,3442.6,3442.3,4.19102]
[1719874461023,0.41487669,3442.6,3442.1,8.90519]
[1719874461188,0.41487669,3442.6,3442.2,0.736]
[1719874461718,0.50283121,3442.5,3442.2,0.736]
[1719874461926,0.5,3442.3,3442.2,0.736]
[1719874465527,0.57429797,3442.3,3442.2,0.736]
[1719874469117,1.07712869,3442.3,3442.2,0.736]
[1719874469319,1.49172775,3442.3,3441.9,2.90536]
[1719874469522,0.50283072,3442.2,3442.0,0.55]
[1719874469929,0.41465417,3442.1,3442.0,0.55]
[1719874470442,0.07429797,3442.3,3441.8,0.736]
[1719874470443,0.41465417,3442.2,3441.8,0.736]
[1719874470631,0.91754633,3442.1,3441.8,3.736]
[1719874470926,0.5,3442.0,3441.8,3.736]
[1719874471838,0.5,3442.0,3441.8,6.64144]
[1719874472235,0.07429797,3442.3,3441.8,6.64144]
[1719874472403,0.5,3442.1,3442.0,3.64128]
[1719874472729,0.07429797,3442.3,3442.1,2.90518]
[1719874472951,0.5,3442.2,3442.1,2.90518]
[1719874480345,0.91458516,3442.2,3442.1,2.90518]
[1719874481551,1.41744087,3442.2,3442.1,2.90518]
[1719874481907,0.91458516,3442.2,3442.1,2.90518]
[1719874482347,1.41743999,3442.2,3442.1,2.90518]
[1719874483224,1.41744104,3442.2,3442.1,2.90518]
[1719874484514,1.41744104,3442.2,3442.0,3.7619]
[1719874484515,1.41744104,3442.2,3441.8,5.90542]
[1719874484715,0.91745862,3442.1,3441.8,6.64142]
[1719874484922,0.41458516,3442.0,3441.8,3.0]
[1719874485123,0.91748952,3441.9,3441.8,3.0]
[1719874485324,0.91748952,3441.9,3441.3,2.90585]
[1719874485325,2.298,3441.8,3441.3,2.90585]
[1719874485546,0.41458516,3441.7,3441.4,3.0]
[1719874485847,0.91458516,3441.7,3441.4,3.0]
[1719874486023,0.41458516,3441.6,3441.4,3.0]
[1719874486352,0.5,3441.7,3441.4,3.0]
[1719874495362,0.5,3441.7,3441.4,4.196418]
[1719874495652,0.5,3441.7,3441.4,7.102198]
[1719874495857,0.5,3441.7,3441.5,0.736]
[1719874496955,0.5,3441.7,3441.6,8.29764]
[1719874497157,0.5,3441.7,3441.6,8.84764]
[1719874497326,0.07429797,3442.3,3441.9,2.90534]
[1719874497524,0.5,3442.1,3441.9,3.64134]
[1719874497860,0.07429797,3442.3,3441.9,3.64134]
[1719874498037,0.5,3442.1,3441.9,3.64134]
[1719874498651,0.5,3442.1,3442.0,2.90528]
[1719874498843,0.5,3442.1,3442.0,3.45528]
[1719874499032,0.5,3442.1,3442.0,4.5230422]
[1719874499235,0.07429797,3442.3,3442.1,2.90515]
[1719874499436,0.57429797,3442.3,3442.2,3.64111]
[1719874500138,0.07429797,3442.3,3442.2,4.19111]
[1719874501856,0.07429797,3442.3,3442.2,4.24920611]
[1719874502035,0.07429797,3442.3,3442.2,5.61095292]
[1719874502734,0.07429797,3442.3,3442.2,13.78716292]
[1719874503057,0.07429797,3442.3,3442.2,16.69227292]
[1719874503257,0.07429797,3442.3,3442.2,13.72906681]
[1719874503626,0.07429797,3442.3,3442.2,16.63417681]
[1719874505066,0.07429797,3442.3,3442.2,15.89817681]
[1719874505240,0.07429797,3442.3,3442.2,16.63417681]
[1719874506561,0.07429797,3442.3,3442.2,15.89817681]
[1719874506768,0.07429797,3442.3,3442.2,16.63417681]
[1719874508967,0.07429797,3442.3,3442.2,15.89817681]
[1719874509167,0.07429797,3442.3,3442.2,16.63417681]
[1719874511964,0.07429797,3442.3,3442.2,19.53928681]
[1719874512997,0.07429797,3442.3,3442.2,18.80328681]
[1719874513157,0.07429797,3442.3,3442.2,19.53928681]
[1719874517380,0.02429797,3442.3,3442.2,19.53928681]
[1719874517757,0.02429797,3442.3,3442.2,18.80328681]
[1719874518087,0.02429797,3442.3,3442.2,16.63417681]
[1719874518584,2.3649,3443.2,3443.1,2.90435]
[1719874518882,2.3649,3443.2,3443.1,3.64035]
[1719874521778,2.3649,3443.2,3443.1,0.736]
[1719874522784,2.3649,3443.2,3443.1,3.64035]
[1719874523354,2.3649,3443.2,3443.1,4.594831]
[1719874524984,2.3649,3443.2,3443.1,2.90435]
[1719874529096,2.2553,3443.4,3443.1,2.90435]
[1719874529309,1.00271353,3443.3,3443.2,0.736]
[1719874529486,0.50271353,3443.3,3443.2,3.64027]
[1719874529687,1.00271353,3443.3,3443.2,3.64027]
[1719874529901,0.50271353,3443.3,3443.2,3.64027]
[1719874530201,1.00271328,3443.3,3443.2,3.64027]
[1719874531819,1.00271256,3443.3,3443.2,3.64027]
[1719874532020,0.50271256,3443.3,3443.2,3.64027]
[1719874532394,1.00271256,3443.3,3443.2,3.64027]
[1719874532594,0.50271256,3443.3,3443.2,3.64027]
[1719874532794,1.00271256,3443.3,3443.2,3.64027]
[1719874533404,0.5,3443.3,3443.2,3.64027]
[1719874533608,0.50271176,3443.3,3443.2,3.64027]
[1719874534679,1.00271176,3443.3,3443.2,3.64027]
[1719874535022,0.50271176,3443.3,3443.2,3.64027]
[1719874535216,1.00271176,3443.3,3443.2,3.64027]
[1719874535422,0.50271176,3443.3,3443.2,3.64027]
[1719874536426,1.00271176,3443.3,3443.2,3.64027]
[1719874536812,0.50271193,3443.3,3443.2,3.64027]
[1719874537013,1.00271193,3443.3,3443.2,3.64027]
[1719874537219,0.50271193,3443.3,3443.2,3.64027]
[1719874537517,1.00271193,3443.3,3443.2,3.64027]
[1719874537686,0.50271193,3443.3,3443.2,3.64027]
[1719874537886,1.00271193,3443.3,3443.2,3.64027]
[1719874538405,0.50271193,3443.3,3443.2,3.64027]
[1719874538607,1.00271193,3443.3,3443.2,3.64027]
[1719874539221,0.50271193,3443.3,3443.2,3.64027]
[1719874539386,1.00271193,3443.3,3443.2,3.64027]
[1719874539789,0.50271193,3443.3,3443.2,3.64027]
[1719874539994,2.2553,3443.4,3443.2,3.64027]
[1719874540221,1.00271186,3443.3,3443.2,3.64027]
[1719874540719,1.00271172,3443.3,3443.2,3.64027]
[1719874541089,0.50271172,3443.3,3443.2,3.64027]
[1719874541306,1.00271172,3443.3,3443.2,3.64027]
[1719874541508,0.50271172,3443.3,3443.2,3.64027]
[1719874541688,1.00271172,3443.3,3443.2,3.64027]
[1719874541889,0.50271172,3443.3,3443.2,3.64027]
[1719874542311,1.00271172,3443.3,3443.2,3.64027]
[1719874542709,0.50271172,3443.3,3443.2,3.64027]
[1719874543114,0.50271188,3443.3,3443.2,3.64027]
[1719874543317,1.00271189,3443.3,3443.2,3.64027]
[1719874544242,2.55463097,3443.3,3443.2,3.64027]
[1719874546126,2.55463097,3443.3,3443.0,2.90443]
[1719874546327,2.55463097,3443.2,3443.0,3.64043]
[1719874546527,2.96958338,3443.1,3443.0,3.64043]
[1719874546833,2.96958338,3443.1,3443.0,4.19043]
[1719874547538,2.3728,3443.0,3442.4,2.90489]
[1719874547742,2.9694973,3442.9,3442.4,2.90489]
[1719874548054,2.3728,3442.7,3442.1,3.0]
[1719874548218,0.41455035,3442.6,3442.0,2.90525]
[1719874548521,0.41455035,3442.6,3442.2,0.736]
[1719874553040,0.41455035,3442.6,3442.4,0.736]
[1719874553925,0.41455035,3442.6,3442.4,3.64094]
[1719874554132,0.41455035,3442.5,3442.4,6.94635494]
[1719874554339,7.48,3443.1,3442.6,2.90473]
[1719874554538,2.96876556,3443.0,3442.8,0.736]
[1719874554742,7.48,3443.1,3442.8,0.736]
[1719874554743,2.96876556,3442.9,3442.8,0.736]
[1719874555573,3.04041475,3442.9,3442.8,0.736]
[1719874555929,0.98861355,3442.9,3442.8,0.736]
[1719874556130,3.04095957,3442.9,3442.8,0.736]
[1719874558160,3.04095957,3442.9,3442.7,2.90468]
[1719874558458,2.46657266,3442.8,3442.7,2.90468]
[1719874559192,0.41422664,3442.8,3442.7,2.90468]
[1719874559469,2.46657955,3442.8,3442.7,2.90468]
[1719874559684,2.46657955,3442.8,3442.7,6.84945249]
[1719874559863,2.46657955,3442.8,3442.7,7.39945249]
[1719874559864,0.41422664,3442.8,3442.7,7.39945249]
[1719874562159,0.07164919,3442.9,3442.8,5.80922]
[1719874562334,0.07164919,3442.9,3442.8,6.54522]
[1719874563344,0.48645642,3442.9,3442.8,6.54522]
[1719874563544,0.48645642,3442.9,3442.8,7.58542385]
[1719874565364,0.48645642,3442.9,3442.8,6.84942385]
[1719874565541,0.48645642,3442.9,3442.8,6.54522]
[1719874565963,2.53892384,3442.9,3442.8,5.80922]
[1719874566364,3.04164984,3442.9,3442.7,2.90469]
[1719874566547,0.41480723,3442.8,3442.7,2.90469]
[1719874569166,0.41480723,3442.8,3442.7,3.64069]
[1719874569350,0.41480723,3442.8,3442.7,10.032749]
[1719874573857,0.07164919,3442.9,3442.8,5.80922]
[1719874574053,0.07164919,3442.9,3442.8,6.35922]
[1719874580617,0.07164919,3442.9,3442.8,3.64061]
[1719874581287,0.07164919,3442.9,3442.8,6.60331058]
[1719874581466,0.07164919,3442.9,3442.8,8.18004854]
[1719874584491,0.48672186,3442.9,3442.8,8.18004854]
[1719874584695,0.07164919,3442.9,3442.8,8.18004854]
[1719874585067,0.48670148,3442.9,3442.8,8.18004854]
[1719874587001,0.48670148,3442.9,3442.8,7.38595796]
[1719874587205,0.48670148,3442.9,3442.8,2.90461]
[1719874587404,0.98942264,3442.9,3442.8,2.90461]
[1719874587915,0.98942498,3442.9,3442.8,2.90461]
[1719874589537,3.04228509,3442.9,3442.8,2.90461]
[1719874590419,3.04225025,3442.9,3442.8,2.90461]
[1719874590631,3.04225097,3442.9,3442.8,2.90461]
[1719874590830,0.98942318,3442.9,3442.8,2.90461]
[1719874592017,0.48670148,3442.9,3442.8,2.90461]
[1719874592348,0.48670148,3442.9,3442.8,3.859139]
[1719874592620,0.989419,3442.9,3442.8,3.859139]
[1719874592809,0.48670148,3442.9,3442.8,3.859139]
[1719874593016,0.48670148,3442.9,3442.8,6.763749]
[1719874593226,0.48670148,3442.9,3442.8,7.37183799]
[1719874594742,0.48670148,3442.9,3442.8,9.64583799]
[1719874595311,0.07164919,3442.9,3442.8,9.64583799]
[1719874597448,0.07164919,3442.9,3442.8,12.64583799]
[1719874598315,0.48730123,3442.9,3442.8,12.64583799]
[1719874600872,0.07164919,3442.9,3442.8,12.64583799]
[1719874601550,0.07164919,3442.9,3442.8,15.55044799]
[1719874601762,2.49900002,3443.9,3443.7,2.90385]
[1719874601929,2.97211006,3443.8,3443.7,2.90385]
[1719874603340,2.97210783,3443.8,3443.7,2.90385]
[1719874603542,2.97211708,3443.8,3443.7,2.90385]
[1719874606696,2.97212441,3443.8,3443.7,2.90385]
[1719874607950,2.97212441,3443.8,3443.5,2.90395]
[1719874608150,2.97212441,3443.7,3443.5,2.90395]
[1719874608345,2.97212441,3443.6,3443.5,2.90395]
[1719874609896,2.97211977,3443.6,3443.5,2.90395]
[1719874611289,2.97211977,3443.6,3443.5,3.63995]
[1719874612967,0.4161373,3443.6,3443.5,3.63995]
[1719874613267,2.4575,3444.0,3443.5,3.63995]
[1719874613268,0.50266085,3443.9,3443.6,2.90392]
[1719874613594,2.97192283,3443.8,3443.6,2.90392]
[1719874613793,2.97192283,3443.7,3443.6,2.90392]
[1719874614701,0.4159122,3443.7,3443.6,8.68155]
[1719874614898,2.3964,3444.4,3443.9,2.90368]
[1719874615086,2.97232078,3444.3,3444.1,0.736]
[1719874615288,2.97232078,3444.2,3444.1,0.736]
[1719874615966,0.91878499,3444.2,3444.1,0.736]
[1719874616399,2.97269379,3444.2,3444.1,0.736]
[1719874619181,0.91878515,3444.2,3444.1,0.736]
[1719874619378,0.41618276,3444.2,3444.1,0.736]
[1719874619591,2.97297412,3444.3,3444.1,0.736]
[1719874619789,2.97297412,3444.2,3444.1,0.736]
[1719874620906,2.97297412,3444.2,3443.9,3.63967]
[1719874621214,2.97297412,3444.1,3443.9,3.63967]
[1719874621506,7.48,3444.5,3443.9,3.63967]
[1719874621507,0.9187816,3444.0,3443.9,3.63967]
[1719874621712,0.91878244,3444.0,3443.9,3.63967]
[1719874622294,0.91878241,3444.0,3443.9,3.63967]
[1719874623110,0.41618276,3444.0,3443.9,3.63967]
[1719874623336,0.91878249,3444.4,3443.9,3.63967]
[1719874623517,2.97302286,3444.3,3443.9,3.63967]
[1719874623817,2.97302286,3444.2,3443.9,3.63967]
[1719874624014,0.91878249,3444.1,3443.9,3.63967]
[1719874624190,0.91878249,3444.0,3443.9,3.63967]
[1719874624803,0.41618276,3444.0,3443.9,3.63967]
[1719874625119,0.9187824,3444.4,3443.9,3.63967]
[1719874625415,2.97302759,3444.3,3443.9,3.63967]
[1719874625714,2.97302759,3444.2,3443.9,3.63967]
[1719874626010,0.91878205,3444.1,3443.9,3.63967]
[1719874626213,0.91878205,3444.0,3443.9,3.63967]
[1719874628027,0.41618276,3444.0,3443.9,3.63967]
[1719874628239,1.00519892,3444.0,3443.9,3.63967]
[1719874628404,1.42138168,3444.0,3443.9,3.63967]
[1719874629728,1.42138168,3444.0,3443.9,3.63967]
[1719874631229,0.91878222,3444.0,3443.9,3.63967]
[1719874631396,1.42138237,3444.0,3443.9,3.63967]
[1719874633339,0.91878291,3444.0,3443.9,3.63967]
[1719874633823,0.91878291,3444.0,3443.9,4.581382]
[1719874634028,0.91878291,3444.0,3443.9,7.485062]
[1719874634191,9.8145,3444.6,3444.2,2.90337]
[1719874634392,2.97354642,3444.5,3444.2,3.63937]
[1719874634627,2.97354642,3444.4,3444.2,3.63937]
[1719874634833,0.91910578,3444.3,3444.2,3.63937]
[1719874636824,0.91910578,3444.3,3444.2,2.90337]
[1719874637629,0.91911493,3444.3,3444.2,2.90337]
[1719874637999,0.91911514,3444.3,3444.2,2.90337]
[1719874640730,0.9191145,3444.3,3444.2,2.90337]
[1719874640937,2.97349101,3444.3,3444.2,2.90337]
[1719874641442,2.97362297,3444.3,3444.2,2.90337]
[1719874643803,2.47109998,3444.3,3444.2,2.90337]
[1719874644053,2.97366551,3444.3,3444.2,2.90337]
[1719874645742,3.04354123,3444.3,3444.2,2.90337]
[1719874647146,0.98912263,3444.3,3444.2,2.90337]
[1719874647318,3.04358057,3444.3,3444.2,2.90337]
[1719874650370,2.54101475,3444.3,3444.2,2.90337]
[1719874650517,3.04362955,3444.3,3444.2,2.90337]
[1719874651035,3.04403088,3444.3,3444.2,2.90337]
[1719874651656,3.04403088,3444.3,3444.2,3.63937]
[1719874652167,0.48655681,3444.3,3444.2,3.63937]
[1719874652315,3.04278994,3444.3,3444.2,3.63937]
[1719874653549,3.04278994,3444.3,3444.2,0.736]
[1719874653737,3.04278994,3444.3,3443.6,2.8737]
[1719874653738,3.58079992,3444.3,3443.9,0.736]
[1719874653946,3.58079992,3444.3,3443.3,3.0]
[1719874653947,5.27279521,3444.2,3443.3,5.90417]
[1719874654146,2.97319521,3444.1,3443.5,3.63998]
[1719874654448,2.97319521,3444.0,3443.5,3.63998]
[1719874654622,2.97319521,3443.9,3443.5,3.63998]
[1719874654826,2.97319521,3443.8,3443.5,3.63998]
[1719874655126,2.97319521,3443.7,3443.5,3.63998]
[1719874655322,0.91925437,3443.6,3443.5,2.90398]
[1719874655542,0.91925437,3443.6,3443.5,6.63998]
[1719874655720,0.41668109,3443.6,3443.5,6.63998]
[1719874656319,0.41668109,3444.1,3443.5,6.63998]
[1719874656521,2.97309576,3444.0,3443.7,0.736]
[1719874656722,2.97307428,3443.9,3443.7,0.736]
[1719874656921,5.20309,3444.2,3443.7,0.736]
[1719874656922,2.97307428,3443.8,3443.7,0.736]
[1719874659974,0.41668109,3443.8,3443.7,0.736]
[1719874660578,2.97313408,3444.0,3443.7,0.736]
[1719874660756,2.97313408,3443.9,3443.7,0.736]
[1719874660955,2.97313408,3443.8,3443.7,0.736]
[1719874663281,2.97312294,3443.8,3443.7,0.736]
[1719874663857,2.9731231,3443.8,3443.7,0.736]
[1719874666377,2.97331959,3443.8,3443.7,0.736]
[1719874668177,2.5566385,3443.8,3443.7,0.736]
[1719874668395,2.97299788,3443.8,3443.7,0.736]
[1719874669175,2.97299788,3443.8,3443.6,2.90393]
[1719874669378,2.97299788,3443.7,3443.6,2.90393]
[1719874669707,2.97286051,3443.7,3443.6,2.90393]
[1719874670557,2.97286051,3443.7,3443.5,3.0]
[1719874670760,2.97281533,3443.6,3443.4,3.0]
[1719874670965,2.4488,3443.8,3443.4,3.0]
[1719874670966,2.47010344,3443.5,3443.4,3.0]
[1719874671278,0.41635938,3443.5,3443.4,3.0]
[1719874671594,0.41635938,3443.7,3443.4,3.0]
[1719874671906,2.55647667,3443.6,3443.3,0.736]
[1719874672072,2.97283605,3443.5,3443.3,3.736]
[1719874672280,0.41635938,3443.4,3443.3,3.736]
[1719874672480,0.41635938,3443.7,3443.3,6.64019]
[1719874672684,2.4488,3443.8,3443.3,6.64019]
[1719874672685,2.97271099,3443.6,3443.3,6.64019]
[1719874672911,2.97271199,3443.5,3443.3,6.64019]
[1719874673076,0.41635938,3443.4,3443.3,6.64019]
[1719874673786,0.41635938,3443.7,3443.3,6.64019]
[1719874673987,2.97273398,3443.6,3443.3,6.64019]
[1719874674305,0.91902777,3443.5,3443.3,6.64019]
[1719874674490,0.41635938,3443.4,3443.3,6.64019]
[1719874674881,0.41635938,3443.7,3443.3,6.64019]
[1719874675083,2.97347738,3443.6,3443.3,6.64019]
[1719874675291,0.41635938,3443.5,3443.3,6.64019]
[1719874675480,0.41635938,3443.4,3443.3,6.64019]
[1719874675681,0.41635938,3443.8,3443.3,9.902138]
[1719874675940,2.97349566,3443.7,3443.3,9.902138]
[1719874676092,0.41635938,3443.6,3443.3,9.902138]
[1719874676286,0.41635938,3443.5,3443.3,9.902138]
[1719874676792,0.41635938,3443.4,3443.3,9.902138]
[1719874676993,0.41635938,3443.8,3443.3,9.902138]
[1719874677193,2.55717553,3443.7,3443.3,9.902138]
[1719874677394,0.91900727,3443.6,3443.3,9.902138]
[1719874677603,0.41635938,3443.5,3443.3,9.902138]
[1719874677807,0.41635938,3443.4,3443.3,9.902138]
[1719874678021,0.41635938,3443.8,3443.3,9.902138]
[1719874678194,2.55719018,3443.7,3443.3,9.902138]
[1719874678397,0.91900791,3443.6,3443.3,9.902138]
[1719874678682,0.41635938,3443.5,3443.3,9.902138]
[1719874678983,2.90368,3443.9,3443.3,9.902138]
[1719874678984,0.41635938,3443.4,3443.3,9.902138]
[1719874679387,0.41635938,3443.8,3443.3,9.902138]
[1719874679597,2.97354764,3443.7,3443.3,9.902138]
[1719874679803,0.91900811,3443.6,3443.3,9.902138]
[1719874680003,0.41635938,3443.5,3443.3,9.902138]
[1719874680198,0.41635938,3443.4,3443.3,9.902138]
[1719874680404,2.90368,3443.9,3443.3,9.902138]
[1719874680604,2.97352694,3443.8,3443.3,9.902138]
[1719874680799,2.97352694,3443.7,3443.3,9.902138]
[1719874681006,0.91895751,3443.6,3443.3,9.902138]
[1719874681208,0.41630556,3443.5,3443.3,9.902138]
[1719874681402,2.90368,3443.9,3443.5,0.736]
[1719874681596,2.97377016,3443.8,3443.5,0.736]
[1719874681796,0.91898991,3443.7,3443.5,0.736]
[1719874682098,0.91898991,3443.6,3443.5,0.736]
[1719874682295,0.91898991,3443.6,3443.5,8.85674]
[1719874682519,0.5,3444.0,3443.9,2.90362]
[1719874682697,0.91923357,3444.0,3443.9,3.63962]
[1719874683030,0.41665121,3444.0,3443.9,3.63962]
[1719874683200,0.06987572,3444.3,3444.0,2.9036]
[1719874683525,0.91949762,3444.2,3444.1,0.736]
[1719874683740,0.91949762,3444.2,3444.1,3.63951]
[1719874685055,0.91949646,3444.2,3444.1,3.63951]
[1719874685200,0.06987572,3444.3,3444.2,5.80686]
[1719874685519,0.06987572,3444.3,3444.2,12.84356512]
[1719874685729,0.06987572,3444.3,3444.2,16.29699512]
[1719874687803,0.06987572,3444.3,3444.2,17.03299512]
[1719874689245,7.48,3445.5,3445.1,2.90264]
[1719874689463,0.92027044,3445.4,3445.2,2.34]
[1719874689611,0.92027044,3445.3,3445.2,2.34]
[1719874689811,0.92027044,3445.3,3445.1,3.63864]
[1719874690011,0.41782237,3445.2,3445.1,3.63864]
[1719874690415,0.41790468,3445.5,3445.2,2.90258]
[1719874690625,0.92034603,3445.4,3445.2,2.90258]
[1719874690837,0.41790619,3445.3,3445.2,2.90258]
[1719874691061,0.1188897,3445.6,3445.3,2.2894]
[1719874691223,0.41818666,3445.5,3445.4,0.736]
[1719874691426,0.1188897,3445.6,3445.4,0.736]
[1719874692140,0.1188897,3445.6,3445.4,3.63842]
[1719874692849,0.1188897,3445.6,3445.5,5.80466]
[1719874694555,0.1188897,3445.6,3445.5,8.83006]
[1719874695229,0.1188897,3445.6,3445.5,9.38006]
[1719874695559,0.1188897,3445.6,3445.5,6.35466]
[1719874695717,0.1188897,3445.6,3445.5,7.09066]
[1719874695914,0.1188897,3445.6,3445.5,8.1782839]
[1719874696375,0.1188897,3445.6,3445.5,2.90233]
[1719874696517,0.1188897,3445.6,3445.5,3.63833]
[1719874697478,0.1188897,3445.6,3445.5,0.736]
[1719874700051,0.1188897,3445.6,3445.5,3.63833]
[1719874701626,0.1188897,3445.6,3445.5,2.90233]
[1719874701827,0.1188897,3445.6,3445.5,3.63833]
[1719874706147,0.1188897,3445.6,3445.5,7.194734]
[1719874706350,0.1188897,3445.6,3445.5,10.009634]
[1719874709542,0.1188897,3445.6,3445.5,9.273634]
[1719874709863,0.1188897,3445.6,3445.5,10.009634]
[1719874710266,0.1188897,3445.6,3445.5,12.911964]
[1719874715586,0.1188897,3445.6,3445.5,15.911964]
[1719874715789,7.48,3446.2,3446.1,5.80366]
[1719874715998,2.4664,3446.7,3446.4,2.90155]
[1719874716211,0.50227442,3446.6,3446.4,3.63755]
[1719874716504,0.50227442,3446.5,3446.4,3.63755]
[1719874716795,0.50226794,3446.5,3446.4,3.63755]
[1719874717376,0.50226794,3446.5,3446.4,2.90155]
[1719874717906,0.50226794,3446.5,3446.4,3.63755]
[1719874718245,0.50226794,3446.5,3446.4,2.90155]
[1719874719949,0.50226731,3446.5,3446.4,2.90155]
[1719874723285,0.50226637,3446.5,3446.4,2.90155]
[1719874725371,0.92207585,3446.5,3446.4,2.90155]
[1719874725973,0.50226637,3446.5,3446.4,2.90155]
[1719874726960,0.50223456,3446.5,3446.4,2.90155]
[1719874729586,9.9494,3446.9,3446.4,2.90155]
[1719874729774,0.50223554,3446.5,3446.4,2.90155]
[1719874730193,0.50223554,3446.8,3446.4,2.90155]
[1719874730370,0.92232432,3446.7,3446.4,2.90155]
[1719874730571,0.92232432,3446.6,3446.4,2.90155]
[1719874730799,2.4694,3446.9,3446.4,2.90155]
[1719874730800,0.50223554,3446.5,3446.4,2.90155]
[1719874731205,0.50223554,3446.5,3446.2,2.90167]
[1719874731367,2.3844,3446.3,3445.2,2.4137]
[1719874731569,2.3844,3446.1,3445.4,2.90241]
[1719874731893,0.93675586,3446.0,3445.4,2.90241]
[1719874732098,0.93675586,3445.9,3445.4,2.90241]
[1719874732318,0.93675586,3445.8,3445.4,3.63841]
[1719874732499,0.93675586,3445.7,3445.5,2.90233]
[1719874732676,0.50223554,3445.7,3445.5,2.90233]
[1719874732879,5.28625,3446.1,3445.6,0.736]
[1719874733093,0.93640739,3446.0,3445.6,0.736]
[1719874733296,0.93640739,3445.9,3445.6,0.736]
[1719874733597,0.93640739,3445.8,3445.6,0.736]